[Event "IIFL Wealth  4th Mumbai Junior U-13"]
[Site "Mumbai"]
[Date "2019.01.05"]
[Round "7"]
[White "Sai Mahati A"]
[Black "Dabhade Arnav"]
[Result "1-0"]
[ECO "D35"]
[WhiteElo "1267"]
[BlackElo "1064"]
[Annotator "NA RC"]
[PlyCount "61"]
[EventDate "2018.12.30"]
[EventType "swiss"]
[EventCountry "IND"]
[SourceTitle "playchess.com"]
[Source "ChessBase"]
[SourceQuality "1"]
[TimeControl "40/5400+30:1800+30"]

1. d4 {[%emt 0:00:00]} d5 {[%emt 0:00:00]} 2. c4 {[%emt 0:00:00]} e6 {[%emt 0:00:00]} 3. cxd5 {[%emt 0:00:00]} exd5 {[%emt 0:00:00]} 4. Nc3 {[%emt 0:00:00]} Nf6 {[%emt 0:00:03]} 5. Bg5 {[%emt 0:00:39]} Be7 {[%emt 0:01:05]} 6. Nf3 {[%emt 0:00:46]} c6 {[%emt 0:01:00]} 7. e3 {[%emt 0:00:57]} Bg4 {[%emt 0:01:16]} 8. Be2 {[%emt 0:01:52]} Nbd7 {[%emt 0:01:02]} 9. O-O {[%emt 0:00:34]} O-O {[%emt 0:00:07]} 10. Rc1 {[%emt 0:05:37]} Re8 {[%emt 0:02:08]} 11. Bxf6 {[%emt 0:01:07]} Nxf6 {[%emt 0:00:15]} 12. Ne5 {[%emt 0:01:14]} Bxe2 {[%emt 0:01:49]} 13. Qxe2 {[%emt 0:01:19]} Bd6 {[%emt 0:01:34]} 14. f4 {[%emt 0:03:03]} Nd7 {[%emt 0:08:30]} 15. Qg4 {[%emt 0:03:54]} Nb6 {[%emt 0:12:38]} 16. Qh5 {[%emt 0:09:12]} Bxe5 {[%emt 0:02:31]} 17. fxe5 {[%emt 0:00:51]} Qe7 {[%emt 0:01:16]} 18. e4 {[%emt 0:03:54]} Rad8 {[%emt 0:00:49]} 19. exd5 {[%emt 0:01:33]} Nxd5 {[%emt 0:00:28]} 20. Ne4 {[%emt 0:07:54]} Rf8 {[%emt 0:05:34]} 21. Rf3 {[%emt 0:14:12]} f6 {[%emt 0:03:42]} 22. Rcf1 {[%emt 0:06:37]} fxe5 {[%emt 0:05:11]} 23. Ng5 {[%emt 0:03:37]} Nf6 {[%emt 0:03:39]} 24. Qh3 {[%emt 0:02:50]} e4 {[%emt 0:07:53]} 25. Rg3 {[%emt 0:03:58]} Rfe8 {[%emt 0:08:26]} 26. Rxf6 Qxf6 {[%emt 0:02:22]} 27. Qxh7+ {[%emt 0:10:38]} Kf8 {[%emt 0:00:17]} 28. h3 {[%emt 0:06:33]} Qxd4+ {[%emt 0:03:29]} 29. Kh2 {[%emt 0:00:10]} Qe5 {[%emt 0:03:05]} 30. Qg6 {[%emt 0:01:43]} Qf6 {[%emt 0:00:58]} 31. Nh7+ {[%emt 0:00:12] Qe5 [%clk 0:22:45] Ng5 [%clk 0:10:34]} 1-0

[Event "IIFL Wealth  4th Mumbai Junior U-13"]
[Site "Mumbai"]
[Date "2019.01.05"]
[Round "7"]
[White "Ghadge Harsh"]
[Black "Vedant Nitin vekhande"]
[Result "1/2-1/2"]
[ECO "A52"]
[WhiteElo "1265"]
[BlackElo "1564"]
[Annotator "NA RC"]
[PlyCount "119"]
[EventDate "2018.12.30"]
[EventType "swiss"]
[EventCountry "IND"]
[SourceTitle "playchess.com"]
[Source "ChessBase"]
[SourceQuality "1"]
[TimeControl "40/5400+30:1800+30"]

1. d4 {[%emt 0:00:00]} Nf6 {[%emt 0:00:00]} 2. c4 {[%emt 0:00:00]} e5 {[%emt 0:00:00]} 3. dxe5 {[%emt 0:00:00]} Ng4 {[%emt 0:00:00]} 4. Nf3 {[%emt 0:00:07]} Nc6 {[%emt 0:00:00]} 5. Nc3 {[%emt 0:10:41]} Ngxe5 {[%emt 0:00:41]} 6. Nxe5 {[%emt 0:01:19]} Nxe5 {[%emt 0:00:20]} 7. e3 {[%emt 0:04:40]} Bb4 {[%emt 0:04:23]} 8. Bd2 {[%emt 0:00:36]} O-O {[%emt 0:00:33]} 9. a3 {[%emt 0:00:57]} Bxc3 {[%emt 0:00:18]} 10. Bxc3 {[%emt 0:00:08]} d6 {[%emt 0:00:08]} 11. c5 {[%emt 0:12:04]} Bg4 {[%emt 0:04:22]} 12. Be2 {[%emt 0:04:48]} Bxe2 {[%emt 0:04:36]} 13. Qxe2 {[%emt 0:00:10]} Qe7 {[%emt 0:01:41]} 14. cxd6 {[%emt 0:01:59]} Qxd6 {[%emt 0:00:06]} 15. Rd1 {[%emt 0:01:10]} Qe6 {[%emt 0:05:50]} 16. O-O {[%emt 0:07:11]} Nc6 {[%emt 0:02:45]} 17. Qf3 {[%emt 0:04:20]} Qe7 {[%emt 0:02:41]} 18. Qg4 {[%emt 0:02:35]} f5 {[%emt 0:01:27]} 19. Qg3 {[%emt 0:03:14]} Rad8 {[%emt 0:01:24]} 20. h3 {[%emt 0:02:58]} Rd7 {[%emt 0:00:30]} 21. Kh2 {[%emt 0:16:55]} Rfd8 {[%emt 0:00:21]} 22. Rxd7 {[%emt 0:02:21]} Rxd7 {[%emt 0:00:09]} 23. Rc1 {[%emt 0:01:32]} g6 {[%emt 0:04:04]} 24. Qf4 {[%emt 0:05:24]} Kf7 {[%emt 0:05:20]} 25. Qc4+ {[%emt 0:01:50]} Qe6 26. Qxe6+ {[%emt 0:05:15]} Kxe6 {[%emt 0:00:22]} 27. h4 {[%emt 0:01:13]} Ne7 {[%emt 0:02:13]} 28. Kg3 {[%emt 0:01:47]} Nd5 {[%emt 0:00:49]} 29. Kf3 {[%emt 0:01:00]} Nxc3 {[%emt 0:00:06]} 30. Rxc3 {[%emt 0:00:04]} c6 {[%emt 0:00:16]} 31. Rb3 {[%emt 0:02:33]} b6 {[%emt 0:00:36]} 32. Rc3 {[%emt 0:01:57]} c5 {[%emt 0:00:26]} 33. b4 {[%emt 0:01:49]} Rc7 {[%emt 0:01:15]} 34. bxc5 {[%emt 0:00:19]} Ke5 {[%emt 0:02:42]} 35. c6 {[%emt 0:03:03]} Kd5 {[%emt 0:00:05]} 36. Kf4 {[%emt 0:00:18]} Rxc6 {[%emt 0:00:54]} 37. Rxc6 {[%emt 0:00:18]} Kxc6 {[%emt 0:00:05]} 38. Ke5 {[%emt 0:00:03]} b5 {[%emt 0:00:59]} 39. Kd4 {[%emt 0:00:59]} a5 {[%emt 0:00:17]} 40. f3 {[%emt 0:00:00]} h5 {[%emt 0:00:00]} 41. g3 {[%emt 0:01:16]} Kd6 {[%emt 0:02:54]} 42. e4 {[%emt 0:02:49]} fxe4 {[%emt 0:00:25]} 43. Kxe4 {[%emt 0:00:12]} Kc5 {[%emt 0:01:57]} 44. Kd3 {[%emt 0:00:09]} b4 {[%emt 0:00:49]} 45. axb4+ {[%emt 0:00:06]} axb4 {[%emt 0:00:02]} 46. g4 {[%emt 0:00:13]} Kd5 {[%emt 0:01:31]} 47. gxh5 {[%emt 0:00:56]} gxh5 {[%emt 0:00:10]} 48. f4 {[%emt 0:00:32]} b3 {[%emt 0:02:10]} 49. Kc3 {[%emt 0:00:27]} Ke4 {[%emt 0:00:02]} 50. Kxb3 {[%emt 0:00:10]} Kxf4 {[%emt 0:00:07]} 51. Kc2 {[%emt 0:00:12]} Kg3 {[%emt 0:00:10]} 52. Kd2 {[%emt 0:00:05]} Kxh4 {[%emt 0:00:13]} 53. Ke2 {[%emt 0:00:10]} Kg3 {[%emt 0:00:10]} 54. Kf1 {[%emt 0:00:06]} Kh2 {[%emt 0:00:04]} 55. Kf2 {[%emt 0:00:04]} h4 {[%emt 0:00:11]} 56. Kf1 {[%emt 0:00:03]} h3 {[%emt 0:00:18]} 57. Kf2 {[%emt 0:00:06]} Kh1 {[%emt 0:00:06]} 58. Kf1 {[%emt 0:00:03]} Kh2 {[%emt 0:00:18]} 59. Kf2 {[%emt 0:00:05]} Kh1 {[%emt 0:05:33]} 60. Kf1 {[%emt 0:00:11]} 1/2-1/2

[Event "IIFL Wealth  4th Mumbai Junior U-13"]
[Site "Mumbai"]
[Date "2019.01.05"]
[Round "7"]
[White "Darsh Shetty"]
[Black "Bharadia Yash"]
[Result "0-1"]
[ECO "A01"]
[WhiteElo "1260"]
[BlackElo "1559"]
[Annotator "NA RC"]
[PlyCount "84"]
[EventDate "2018.12.30"]
[EventType "swiss"]
[EventCountry "IND"]
[SourceTitle "playchess.com"]
[Source "ChessBase"]
[SourceQuality "1"]
[TimeControl "40/5400+30:1800+30"]

1. b3 {[%emt 0:00:00]} d5 {[%emt 0:01:16]} 2. Bb2 {[%emt 0:00:14]} c5 {[%emt 0:00:02]} 3. e3 {[%emt 0:00:01]} Nc6 {[%emt 0:00:09]} 4. Bb5 {[%emt 0:00:17]} Qc7 {[%emt 0:00:24]} 5. Nf3 {[%emt 0:00:12]} Bg4 {[%emt 0:00:11]} 6. h3 {[%emt 0:00:20]} Bh5 {[%emt 0:00:25]} 7. d3 {[%emt 0:01:40]} Nf6 {[%emt 0:01:35]} 8. Nbd2 {[%emt 0:00:16]} e6 {[%emt 0:04:18]} 9. Be5 {[%emt 0:08:13]} Bd6 {[%emt 0:03:59]} 10. Bxd6 {[%emt 0:00:10]} Qxd6 {[%emt 0:00:03]} 11. d4 {[%emt 0:01:05]} O-O {[%emt 0:00:32]} 12. Bxc6 {[%emt 0:00:17]} bxc6 {[%emt 0:00:18]} 13. Nf1 {[%emt 0:03:15]} Bxf3 {[%emt 0:00:34]} 14. Qxf3 {[%emt 0:06:33]} cxd4 {[%emt 0:00:39]} 15. exd4 {[%emt 0:00:13]} e5 {[%emt 0:00:01]} 16. O-O-O {[%emt 0:01:45]} a5 {[%emt 0:01:13]} 17. Kb2 {[%emt 0:07:10]} a4 {[%emt 0:00:36]} 18. Ra1 {[%emt 0:01:36]} axb3 {[%emt 0:00:08]} 19. axb3 {[%emt 0:12:42]} Rxa1 {[%emt 0:00:03]} 20. Kxa1 {[%emt 0:00:22]} Qa3+ {[%emt 0:00:41]} 21. Kb1 {[%emt 0:00:08]} Ra8 {[%emt 0:00:04]} 22. Qc3 {[%emt 0:00:12]} Ne4 {[%emt 0:00:35]} 23. Qb2 {[%emt 0:00:49]} Qb4 {[%emt 0:00:35]} 24. Ng3 {[%emt 0:06:03]} Nc3+ {[%emt 0:00:15]} 25. Kc1 {[%emt 0:00:30]} Ra2 {[%emt 0:00:04]} 26. Qxa2 {[%emt 0:02:23]} Nxa2+ {[%emt 0:01:18]} 27. Kb2 {[%emt 0:00:27]} Qxd4+ {[%emt 0:00:18]} 28. Kxa2 {[%emt 0:00:40]} Qxf2 {[%emt 0:00:03]} 29. Nh5 {[%emt 0:01:03]} g6 {[%emt 0:00:10]} 30. Kb2 {[%emt 0:00:32]} gxh5 {[%emt 0:00:09]} 31. Ra1 {[%emt 0:00:36]} Qxg2 {[%emt 0:00:02]} 32. Ra8+ {[%emt 0:00:12]} Kg7 {[%emt 0:00:15]} 33. Rc8 {[%emt 0:00:59]} d4 {[%emt 0:00:03]} 34. Re8 {[%emt 0:00:19]} d3 {[%emt 0:00:01]} 35. h4 {[%emt 0:01:12]} Qxc2+ {[%emt 0:00:03]} 36. Ka1 {[%emt 0:00:13]} d2 {[%emt 0:00:06]} 37. Rd8 {[%emt 0:00:35]} Qc3+ {[%emt 0:00:13]} 38. Ka2 {[%emt 0:02:22]} Qa5+ {[%emt 0:00:02]} 39. Kb2 {[%emt 0:00:28]} Qxd8 {[%emt 0:00:01]} 40. Kc3 {[%emt 0:00:00]} d1=Q 41. Kb4 {[%emt 0:02:03]} Qb6+ {[%emt 0:00:04]} 42. Kc3 {[%emt 0:00:46]} Qbd4# {[%emt 0:00:03] Kxd4} 0-1

[Event "IIFL Wealth  4th Mumbai Junior U-13"]
[Site "Mumbai"]
[Date "2019.01.05"]
[Round "7"]
[White "Bulsara Yazaan"]
[Black "Ambre Ved"]
[Result "1-0"]
[ECO "B40"]
[WhiteElo "1244"]
[BlackElo "1063"]
[Annotator "NA RC"]
[PlyCount "123"]
[EventDate "2018.12.30"]
[EventType "swiss"]
[EventCountry "IND"]
[SourceTitle "playchess.com"]
[Source "ChessBase"]
[SourceQuality "1"]
[TimeControl "40/5400+30:1800+30"]

1. e4 {[%emt 0:00:00]} c5 {[%emt 0:00:00]} 2. Nf3 {[%emt 0:00:13]} e6 {[%emt 0:00:00]} 3. d4 {[%emt 0:00:16]} cxd4 {[%emt 0:00:00]} 4. Nxd4 {[%emt 0:00:15]} Nf6 {[%emt 0:00:00]} 5. Nc3 {[%emt 0:00:42]} Qc7 {[%emt 0:00:00]} 6. Be3 {[%emt 0:01:21]} Bb4 {[%emt 0:00:00]} 7. Ndb5 {[%emt 0:04:54]} Qc6 {[%emt 0:00:38]} 8. f3 {[%emt 0:04:10]} a6 {[%emt 0:00:24]} 9. a3 {[%emt 0:01:35]} Ba5 {[%emt 0:03:09]} 10. Nd6+ {[%emt 0:02:27]} Ke7 {[%emt 0:08:11]} 11. Nc4 {[%emt 0:14:40]} Bxc3+ {[%emt 0:01:31]} 12. bxc3 {[%emt 0:00:16]} b5 {[%emt 0:00:08]} 13. Nb6 {[%emt 0:00:29]} Bb7 {[%emt 0:16:18]} 14. Nxa8 {[%emt 0:01:00]} Qxc3+ {[%emt 0:00:22]} 15. Kf2 {[%emt 0:00:14]} Bxa8 {[%emt 0:01:54]} 16. Bd3 {[%emt 0:00:20]} Nc6 {[%emt 0:02:34]} 17. Qd2 {[%emt 0:01:33]} Qxd2+ {[%emt 0:03:01]} 18. Bxd2 {[%emt 0:00:14]} Rc8 {[%emt 0:01:26]} 19. Be3 {[%emt 0:01:06]} Ne5 {[%emt 0:04:34]} 20. Rac1 {[%emt 0:00:54]} Rc3 {[%emt 0:00:30]} 21. Be2 {[%emt 0:01:50]} Bxe4 {[%emt 0:08:07]} 22. Bd4 Rxc2 {[%emt 0:06:45]} 23. Rxc2 {[%emt 0:00:40]} Bxc2 {[%emt 0:00:02]} 24. Bxe5 {[%emt 0:00:08]} Ne8 {[%emt 0:03:07]} 25. Rc1 {[%emt 0:00:46]} Bb3 {[%emt 0:00:37]} 26. Bd1 {[%emt 0:00:13]} Bc4 {[%emt 0:00:24]} 27. a4 {[%emt 0:00:22]} d6 {[%emt 0:00:45]} 28. axb5 {[%emt 0:00:27]} axb5 {[%emt 0:00:03]} 29. Bb2 {[%emt 0:00:19]} Nc7 {[%emt 0:00:16]} 30. Bxg7 {[%emt 0:00:14]} Nd5 {[%emt 0:01:10]} 31. Be2 {[%emt 0:00:59]} Bxe2 {[%emt 0:02:06]} 32. Kxe2 {[%emt 0:00:13]} Nf4+ {[%emt 0:00:01]} 33. Kd2 {[%emt 0:00:35]} Nxg2 34. Rb1 {[%emt 0:00:33]} Nh4 {[%emt 0:02:19]} 35. Ke2 {[%emt 0:00:19]} Nf5 {[%emt 0:00:12]} 36. Ba1 {[%emt 0:00:07]} Kd7 {[%emt 0:00:45]} 37. Rxb5 {[%emt 0:00:10]} Kc6 {[%emt 0:00:01]} 38. Rb8 {[%emt 0:00:21]} Kd7 {[%emt 0:04:04]} 39. Rh8 {[%emt 0:01:12]} h6 {[%emt 0:00:39]} 40. Ra8 {[%emt 0:00:00]} e5 {[%emt 0:00:00]} 41. Ra7+ {[%emt 0:00:28]} Ke6 {[%emt 0:00:11]} 42. Ra6 {[%emt 0:00:07]} Ne7 {[%emt 0:00:55]} 43. Bb2 {[%emt 0:00:53]} Nf5 {[%emt 0:00:33]} 44. Kd3 {[%emt 0:00:21]} Kd5 {[%emt 0:00:10]} 45. Ra5+ {[%emt 0:00:34]} Ke6 {[%emt 0:00:01]} 46. Ke4 {[%emt 0:01:35]} Nh4 {[%emt 0:01:22]} 47. Bxe5 {[%emt 0:00:26]} f5+ {[%emt 0:00:25]} 48. Ke3 {[%emt 0:01:00]} dxe5 {[%emt 0:00:14]} 49. Ra6+ {[%emt 0:00:09]} Kd5 {[%emt 0:00:02]} 50. Rxh6 {[%emt 0:00:26]} Ng2+ {[%emt 0:00:01]} 51. Kf2 {[%emt 0:00:25]} Nf4 {[%emt 0:00:10]} 52. h4 {[%emt 0:00:50]} e4 {[%emt 0:00:12]} 53. fxe4+ {[%emt 0:00:30]} fxe4 {[%emt 0:00:02]} 54. Ke3 {[%emt 0:00:45]} Ng2+ 55. Kf2 {[%emt 0:00:32]} Nf4 {[%emt 0:00:39]} 56. h5 {[%emt 0:00:19]} Ne6 {[%emt 0:01:45]} 57. Ke3 {[%emt 0:00:53]} Ng7 {[%emt 0:00:20]} 58. Rg6 {[%emt 0:02:28]} Nf5+ {[%emt 0:00:33]} 59. Kf4 {[%emt 0:01:14]} Ne7 {[%emt 0:00:37]} 60. Rg5+ {[%emt 0:00:23]} Kd4 {[%emt 0:00:11]} 61. h6 {[%emt 0:00:55]} Nd5+ {[%emt 0:00:45]} 62. Rxd5+ {[%emt 0:00:22]} 1-0

[Event "IIFL Wealth  4th Mumbai Junior U-13"]
[Site "Mumbai"]
[Date "2019.01.05"]
[Round "7"]
[White "Shah Vrisha Parag"]
[Black "Aditya Ramanathan"]
[Result "0-1"]
[ECO "C96"]
[WhiteElo "1240"]
[BlackElo "1493"]
[Annotator "NA RC"]
[PlyCount "94"]
[EventDate "2018.12.30"]
[EventType "swiss"]
[EventCountry "IND"]
[SourceTitle "playchess.com"]
[Source "ChessBase"]
[SourceQuality "1"]
[TimeControl "40/5400+30:1800+30"]

1. e4 {[%emt 0:00:00]} e5 {[%emt 0:00:00]} 2. Nf3 {[%emt 0:00:00]} Nc6 {[%emt 0:00:00]} 3. Bb5 {[%emt 0:00:16]} a6 {[%emt 0:00:00]} 4. Ba4 {[%emt 0:00:12]} Nf6 {[%emt 0:00:00]} 5. O-O {[%emt 0:00:31]} Be7 {[%emt 0:00:00]} 6. Re1 {[%emt 0:01:02]} b5 {[%emt 0:00:08]} 7. Bb3 {[%emt 0:00:07]} d6 {[%emt 0:00:07]} 8. h3 {[%emt 0:00:45]} O-O {[%emt 0:00:08]} 9. c3 {[%emt 0:01:40]} Na5 {[%emt 0:00:08]} 10. Bc2 {[%emt 0:00:27]} c5 {[%emt 0:00:08]} 11. d4 {[%emt 0:01:19]} Nd7 {[%emt 0:00:10]} 12. Nbd2 {[%emt 0:03:38]} exd4 {[%emt 0:00:10]} 13. cxd4 {[%emt 0:00:56]} Nc6 {[%emt 0:00:07]} 14. Nf1 {[%emt 0:03:31]} Bf6 {[%emt 0:02:15]} 15. Be3 {[%emt 0:09:46]} cxd4 {[%emt 0:03:59]} 16. Bxd4 {[%emt 0:03:43]} Nxd4 {[%emt 0:00:40]} 17. Nxd4 {[%emt 0:00:10]} Ne5 {[%emt 0:00:19]} 18. Ne3 {[%emt 0:03:01]} Be6 {[%emt 0:03:18]} 19. Ndf5 {[%emt 0:03:18]} Bxf5 {[%emt 0:00:47]} 20. exf5 {[%emt 0:02:31]} Nc4 {[%emt 0:00:18]} 21. Nxc4 {[%emt 0:00:32]} bxc4 {[%emt 0:00:05]} 22. Rb1 {[%emt 0:01:05]} d5 {[%emt 0:00:09]} 23. b3 {[%emt 0:00:52]} c3 {[%emt 0:00:21]} 24. Bd3 {[%emt 0:01:04]} d4 {[%emt 0:00:35]} 25. Qc2 {[%emt 0:00:45]} Qd6 {[%emt 0:01:25]} 26. Be4 {[%emt 0:05:53]} Rac8 {[%emt 0:00:44]} 27. Rbd1 {[%emt 0:00:59]} Rfd8 {[%emt 0:01:00]} 28. Rd3 {[%emt 0:11:09]} h6 {[%emt 0:01:43]} 29. Rf3 {[%emt 0:08:55]} Re8 {[%emt 0:05:54]} 30. Rd3 {[%emt 0:06:06]} Qa3 {[%emt 0:01:27]} 31. Rdd1 {[%emt 0:02:16]} Qb2 {[%emt 0:04:35]} 32. Qxb2 {[%emt 0:04:31]} cxb2 {[%emt 0:00:08]} 33. f3 {[%emt 0:00:11]} Bg5 {[%emt 0:01:25]} 34. Bb1 {[%emt 0:02:48]} Rxe1+ {[%emt 0:00:33]} 35. Rxe1 {[%emt 0:00:04]} Rc1 {[%emt 0:00:17]} 36. Kf1 {[%emt 0:01:10]} Bd2 {[%emt 0:00:08]} 37. Ke2 {[%emt 0:01:21]} Rxe1+ {[%emt 0:00:28]} 38. Kxd2 {[%emt 0:00:10]} Rxb1 {[%emt 0:00:05]} 39. Kc2 {[%emt 0:00:03]} Rc1+ {[%emt 0:00:10]} 40. Kxb2 {[%emt 0:00:00]} Rc8 {[%emt 0:00:00]} 41. g4 {[%emt 0:00:16]} d3 {[%emt 0:00:10]} 42. Ka3 {[%emt 0:00:14]} d2 {[%emt 0:00:05]} 43. f4 {[%emt 0:00:13]} d1=Q {[%emt 0:00:07]} 44. h4 {[%emt 0:00:04]} Qc1+ {[%emt 0:00:13]} 45. Ka4 {[%emt 0:00:06]} Rb8 {[%emt 0:00:21]} 46. a3 {[%emt 0:00:08]} Qc6+ {[%emt 0:00:06]} 47. Ka5 {[%emt 0:00:06]} Qb5# {[%emt 0:00:06]} 0-1

[Event "IIFL Wealth  4th Mumbai Junior U-13"]
[Site "Mumbai"]
[Date "2019.01.05"]
[Round "7"]
[White "Prakhar Chaturvedi"]
[Black "Arjun Sidharth S"]
[Result "0-1"]
[ECO "B23"]
[WhiteElo "1235"]
[BlackElo "1489"]
[Annotator "NA RC"]
[PlyCount "109"]
[EventDate "2018.12.30"]
[EventType "swiss"]
[EventCountry "IND"]
[SourceTitle "playchess.com"]
[Source "ChessBase"]
[SourceQuality "1"]
[TimeControl "40/5400+30:1800+30"]

1. e4 {[%emt 0:00:00]} c5 {[%emt 0:00:41]} 2. Nc3 {[%emt 0:00:12]} d6 {[%emt 0:00:06]} 3. f4 {[%emt 0:00:27]} g6 {[%emt 0:00:07]} 4. Nf3 {[%emt 0:00:14]} Bg7 {[%emt 0:00:04]} 5. Bb5+ {[%emt 0:00:09]} Nc6 {[%emt 0:00:21]} 6. d3 {[%emt 0:00:27]} e6 {[%emt 0:00:35]} 7. Be3 {[%emt 0:01:21]} Nge7 {[%emt 0:00:15]} 8. O-O {[%emt 0:01:01]} O-O {[%emt 0:00:38]} 9. Bxc6 {[%emt 0:00:13]} Nxc6 {[%emt 0:11:20]} 10. a3 {[%emt 0:05:16]} Nd4 {[%emt 0:04:01]} 11. h3 {[%emt 0:05:07]} Bd7 {[%emt 0:10:48]} 12. Rb1 {[%emt 0:03:54]} Qe7 {[%emt 0:12:08]} 13. g4 {[%emt 0:05:49]} f5 {[%emt 0:02:25]} 14. g5 {[%emt 0:07:56]} Bc6 {[%emt 0:04:38]} 15. Qd2 {[%emt 0:06:04]} d5 {[%emt 0:02:22]} 16. exd5 {[%emt 0:02:41]} exd5 {[%emt 0:09:17]} 17. Bxd4 {[%emt 0:00:44]} cxd4 {[%emt 0:00:10]} 18. Ne2 {[%emt 0:00:43]} Qe3+ {[%emt 0:04:23]} 19. Qxe3 {[%emt 0:01:50]} dxe3 {[%emt 0:00:03]} 20. d4 {[%emt 0:00:53]} Bb5 {[%emt 0:08:31]} 21. Rfe1 {[%emt 0:01:03]} Bxe2 {[%emt 0:00:41]} 22. Rxe2 {[%emt 0:00:05]} Rfe8 {[%emt 0:01:31]} 23. Ne5 {[%emt 0:01:32]} Bxe5 {[%emt 0:00:31]} 24. dxe5 {[%emt 0:02:42]} d4 {[%emt 0:00:19]} 25. Rd1 {[%emt 0:00:19]} Rad8 {[%emt 0:00:15]} 26. Rd3 {[%emt 0:00:05]} Kf7 {[%emt 0:03:46]} 27. c3 {[%emt 0:01:06]} dxc3 {[%emt 0:02:48]} 28. Rxc3 {[%emt 0:05:09]} Rd4 {[%emt 0:01:13]} 29. Rexe3 {[%emt 0:00:36]} Rxf4 {[%emt 0:00:17]} 30. Rc7+ {[%emt 0:01:53]} Re7 {[%emt 0:00:23]} 31. e6+ {[%emt 0:00:04]} Kf8 {[%emt 0:00:12]} 32. Rc8+ {[%emt 0:02:04]} Kg7 {[%emt 0:05:06]} 33. Rd8 {[%emt 0:04:37]} Re4 {[%emt 0:01:53]} 34. Kf2 {[%emt 0:00:42]} Rxe3 {[%emt 0:00:12]} 35. Kxe3 {[%emt 0:00:10]} Rxe6+ {[%emt 0:00:12]} 36. Kf3 {[%emt 0:00:14]} Kf7 {[%emt 0:01:09]} 37. Rd7+ {[%emt 0:00:19]} Re7 {[%emt 0:00:06]} 38. Rd6 {[%emt 0:00:35]} Rc7 {[%emt 0:00:36]} 39. Kf4 {[%emt 0:01:06]} Ke7 {[%emt 0:00:12]} 40. Rd4 {[%emt 0:00:00]} Ke6 {[%emt 0:00:00]} 41. Rb4 {[%emt 0:05:54]} Kd5 {[%emt 0:02:43]} 42. b3 {[%emt 0:00:32]} b6 {[%emt 0:00:55]} 43. h4 {[%emt 0:00:50]} Rc1 {[%emt 0:09:10]} 44. Rb5+ {[%emt 0:01:16]} Kd6 {[%emt 0:00:08]} 45. Ke3 {[%emt 0:01:02]} Re1+ {[%emt 0:00:22]} 46. Kf3 {[%emt 0:02:49]} Re4 {[%emt 0:00:13]} 47. h5 {[%emt 0:01:03]} Kc6 {[%emt 0:00:11]} 48. a4 {[%emt 0:00:57]} a6 {[%emt 0:00:35]} 49. hxg6 {[%emt 0:00:19]} hxg6 {[%emt 0:00:16]} 50. Rxf5 {[%emt 0:00:20]} gxf5 {[%emt 0:00:08]} 51. g6 {[%emt 0:00:08]} Rg4 {[%emt 0:00:09]} 52. g7 {[%emt 0:00:09]} Rxg7 {[%emt 0:00:03]} 53. Kf4 {[%emt 0:00:04]} Rf7 {[%emt 0:00:05]} 54. Ke5 {[%emt 0:00:06]} f4 {[%emt 0:00:03]} 55. Kd4 0-1

[Event "IIFL Wealth  4th Mumbai Junior U-13"]
[Site "Mumbai"]
[Date "2019.01.05"]
[Round "7"]
[White "Keerthana B"]
[Black "Desai Sailee"]
[Result "1-0"]
[ECO "B01"]
[WhiteElo "1232"]
[BlackElo "1042"]
[Annotator "NA RC"]
[PlyCount "81"]
[EventDate "2018.12.30"]
[EventType "swiss"]
[EventCountry "IND"]
[SourceTitle "playchess.com"]
[Source "ChessBase"]
[SourceQuality "1"]
[TimeControl "40/5400+30:1800+30"]

1. e4 {[%emt 0:00:00]} d5 {[%emt 0:00:00]} 2. exd5 {[%emt 0:00:00]} Qxd5 {[%emt 0:00:00]} 3. Nc3 {[%emt 0:00:00]} Qd6 {[%emt 0:00:00]} 4. d4 {[%emt 0:00:28]} Nf6 {[%emt 0:00:01]} 5. Nf3 {[%emt 0:00:31]} e6 {[%emt 0:00:42]} 6. g3 {[%emt 0:00:45]} b6 {[%emt 0:01:19]} 7. Bf4 {[%emt 0:00:26]} Qd8 {[%emt 0:00:10]} 8. Bg2 {[%emt 0:00:44]} Bb7 {[%emt 0:00:20]} 9. O-O {[%emt 0:01:13]} Be7 {[%emt 0:00:42]} 10. Re1 {[%emt 0:02:10]} O-O {[%emt 0:00:16]} 11. a3 {[%emt 0:02:04]} Nbd7 {[%emt 0:02:03]} 12. Nb5 {[%emt 0:03:12]} c5 {[%emt 0:05:30]} 13. Nd6 {[%emt 0:09:35]} Bxd6 {[%emt 0:02:54]} 14. Bxd6 {[%emt 0:00:06]} Re8 {[%emt 0:00:17]} 15. Qd3 {[%emt 0:02:58]} Nf8 {[%emt 0:01:51]} 16. dxc5 {[%emt 0:01:05]} bxc5 {[%emt 0:01:04]} 17. Bxc5 {[%emt 0:00:11]} Be4 {[%emt 0:05:12]} 18. Rxe4 {[%emt 0:00:53]} Qxd3 {[%emt 0:11:30]} 19. cxd3 {[%emt 0:00:08]} Nxe4 {[%emt 0:00:06]} 20. dxe4 {[%emt 0:00:09]} Rec8 {[%emt 0:00:58]} 21. Bb4 {[%emt 0:00:49]} Rc2 {[%emt 0:01:46]} 22. Bc3 {[%emt 0:00:21]} Rc8 {[%emt 0:00:54]} 23. Nd4 {[%emt 0:01:19]} R2xc3 {[%emt 0:06:04]} 24. bxc3 {[%emt 0:00:11]} Rxc3 {[%emt 0:00:07]} 25. Nb5 {[%emt 0:00:13]} Rc5 {[%emt 0:01:02]} 26. Nxa7 {[%emt 0:00:24]} Ra5 {[%emt 0:00:53]} 27. Nc6 {[%emt 0:00:15]} Ra8 {[%emt 0:00:48]} 28. e5 {[%emt 0:00:14]} Re8 {[%emt 0:00:13]} 29. a4 {[%emt 0:00:11]} Nd7 {[%emt 0:00:15]} 30. a5 {[%emt 0:00:13]} Nb8 {[%emt 0:00:35]} 31. Nxb8 {[%emt 0:00:10]} Rxb8 {[%emt 0:00:15]} 32. a6 {[%emt 0:00:10]} g6 {[%emt 0:00:09]} 33. a7 {[%emt 0:00:09]} Rf8 {[%emt 0:00:03]} 34. Rb1 {[%emt 0:00:28]} Kg7 {[%emt 0:00:22]} 35. Rb8 {[%emt 0:00:06]} Rxb8 {[%emt 0:00:22]} 36. axb8=Q {[%emt 0:00:09]} Kh6 {[%emt 0:00:08]} 37. Qf8+ {[%emt 0:00:25]} Kh5 {[%emt 0:00:05]} 38. f4 {[%emt 0:00:22]} g5 {[%emt 0:00:36]} 39. Qxf7+ {[%emt 0:00:07]} Kh6 {[%emt 0:00:16]} 40. Qf6+ {[%emt 0:00:00]} Kh5 {[%emt 0:00:00]} 41. Qxg5# {[%emt 0:00:08]} 1-0